bitfinex/quotes_SOLUSD_20240718
["timestamp","ask_amount","ask_price","bid_price","bid_amount"]
[1721324678998,6.3718,156.94,156.9,15.933]
[1721324678999,12.49,156.92,156.9,15.933]
[1721324679378,12.49,156.92,156.89,6.3737]
[1721324680197,12.49,156.92,156.9,6.3734]
[1721324680599,12.49,156.93,156.9,6.3734]
[1721324681005,12.49,156.92,156.9,6.3734]
[1721324682201,12.49,156.94,156.91,6.3729]
[1721324682912,12.49,156.93,156.91,6.3729]
[1721324683708,6.3715,156.95,156.91,6.3729]
[1721324683893,12.49,156.94,156.92,6.3726]
[1721324685912,27.7048,156.93,156.88,0.8138795]
[1721324686099,12.49,156.9,156.88,0.8138795]
[1721324687289,12.49,156.9,156.88,7.1880795]
[1721324687617,12.49,156.89,156.88,0.8138795]
[1721324691102,18.8838,156.89,156.88,0.8138795]
[1721324691308,38.8838,156.89,156.88,0.8138795]
[1721324692507,32.51,156.89,156.88,0.8138795]
[1721324695011,51.3938,156.89,156.88,0.8138795]
[1721324697714,26.3738,156.89,156.88,0.8138795]
[1721324697925,38.8838,156.89,156.88,0.8138795]
[1721324698291,26.3738,156.89,156.88,0.8138795]
[1721324698494,38.8838,156.89,156.88,0.8138795]
[1721324699105,20.0,156.89,156.88,0.8138795]
[1721324699421,32.51,156.89,156.88,0.8138795]
[1721324700292,6.3723,156.93,156.88,16.7491795]
[1721324700509,7.36263749,156.94,156.88,16.7491795]
[1721324700510,23.28773749,156.99,156.91,12.51]
[1721324700695,15.0558,157.01,156.92,1.27433758]
[1721324700893,12.51,156.96,156.94,15.9288]
[1721324701130,12.51,156.95,156.91,15.9324]
[1721324701420,12.51,156.95,156.92,6.3723]
[1721324701421,12.49,156.95,156.92,6.3723]
[1721324701726,12.49,156.95,156.91,22.3053]
[1721324701888,12.49,156.95,156.92,6.3726]
[1721324702090,6.3701,156.99,156.94,6.3718]
[1721324702717,6.3702,156.98,156.94,6.3718]
[1721324702915,6.3708,156.97,156.93,22.3022]
[1721324703112,6.3703,156.98,156.94,6.3717]
[1721324703337,6.3709,156.97,156.93,15.93]
[1721324703643,30.9788,157.01,156.93,15.93]
[1721324703811,45.0,157.0,156.92,6.3723]
[1721324704134,6.3711,156.96,156.91,6.373]
[1721324704341,6.3719,156.94,156.9,15.9332]
[1721324704651,20.0,156.93,156.9,15.9332]
[1721324705535,6.3713,156.96,156.92,6.3726]
[1721324705711,15.0558,157.01,156.93,6.3721]
[1721324705911,6.3699,156.99,156.94,6.3717]
[1721324706147,6.3703,156.98,156.94,22.3008]
[1721324706436,6.3703,156.98,156.94,15.9291]
[1721324707243,20.0,156.97,156.94,22.3008]
[1721324707940,20.0,156.97,156.94,15.9291]
[1721324708514,6.371,156.96,156.92,6.3726]
[1721324708723,6.371,156.96,156.91,22.3049]
[1721324708935,6.371,156.96,156.92,6.3726]
[1721324709240,20.0,156.97,156.94,6.3717]
[1721324709841,26.3706,156.97,156.93,6.3722]
[1721324710745,26.3706,156.97,156.88,48.6206795]
[1721324710746,20.0,156.97,156.88,48.6206795]
[1721324711119,20.0,156.97,156.89,7.6481762]
[1721324711315,6.3725,156.93,156.88,23.1234795]
[1721324711521,6.3725,156.93,156.88,16.7493795]
[1721324711748,6.3727,156.92,156.88,23.1235795]
[1721324712041,6.3724,156.93,156.88,23.1235795]
[1721324712423,6.3727,156.92,156.88,23.1235795]
[1721324713134,6.3723,156.93,156.88,23.1235795]
[1721324713331,6.3726,156.92,156.88,23.1235795]
[1721324713836,6.3723,156.93,156.89,6.3738]
[1721324714042,6.3717,156.95,156.9,6.3733]
[1721324714226,26.3721,156.94,156.89,7.64831624]
[1721324714421,20.0,156.94,156.9,15.9334]
[1721324714626,20.0,156.94,156.91,6.3728]
[1721324715240,20.0,156.94,156.9,15.9334]
[1721324715241,6.3723,156.93,156.9,15.9334]
[1721324715441,6.3727,156.92,156.88,7.1880795]
[1721324715750,6.3723,156.93,156.89,6.3737]
[1721324716521,26.3719,156.94,156.9,6.3732]
[1721324716733,20.0,156.94,156.89,15.9341]
[1721324716927,6.3732,156.91,156.88,0.8138795]
[1721324717127,6.3727,156.92,156.88,0.8138795]
[1721324717355,20.0,156.91,156.88,0.8138795]
[1721324717647,20.0,156.91,156.88,7.1880795]
[1721324717847,26.3731,156.91,156.88,0.8138795]
[1721324718149,6.3735,156.9,156.88,0.8138795]
[1721324720319,26.3732,156.91,156.88,0.8138795]
[1721324720630,6.3735,156.9,156.88,0.8138795]
[1721324720927,6.3738,156.89,156.88,0.8138795]
[1721324721150,26.3738,156.89,156.88,0.8138795]
[1721324721521,32.99015528,156.89,156.88,0.8138795]
[1721324723530,26.3738,156.89,156.88,0.8138795]
[1721324723947,32.98759999,156.89,156.88,0.8138795]
[1721324725033,26.3738,156.89,156.88,0.8138795]
[1721324725239,20.0,156.89,156.88,0.8138795]
[1721324725959,6.373,156.92,156.88,0.8138795]
[1721324726135,6.3731,156.91,156.88,0.8138795]
[1721324726336,6.3735,156.9,156.88,0.8138795]
[1721324727363,6.3732,156.91,156.88,0.8138795]
[1721324727545,20.0,156.9,156.88,0.8138795]
[1721324728262,26.373,156.91,156.88,0.8138795]
[1721324728864,20.0,156.9,156.88,0.8138795]
[1721324729243,6.3738,156.89,156.88,0.8138795]
[1721324729643,26.3738,156.89,156.88,0.8138795]
[1721324730848,71.3738,156.89,156.88,0.8138795]
[1721324731362,71.3738,156.89,156.84,4.0]
[1721324731363,6.3755,156.85,156.84,4.0]
[1721324731663,71.3755,156.85,156.84,4.0]
[1721324732039,90.5255,156.85,156.84,4.0]
[1721324732237,90.5255,156.85,156.73,0.8138795]
[1721324732238,16.3132,156.78,156.73,0.8138795]
[1721324732453,6.3799,156.74,156.73,0.8138795]
[1721324732652,26.3799,156.74,156.73,0.8138795]
[1721324732857,71.3799,156.74,156.73,0.8138795]
[1721324733243,61.4798,156.74,156.73,0.8138795]
[1721324733558,106.4798,156.74,156.73,0.8138795]
[1721324735174,87.3298,156.74,156.73,0.8138795]
[1721324735551,71.3799,156.74,156.73,0.8138795]
[1721324735764,26.3799,156.74,156.73,0.8138795]
[1721324736869,26.3799,156.74,156.73,0.3138795]
[1721324737760,20.0,156.74,156.73,0.3138795]
[1721324738668,26.3799,156.74,156.73,0.3138795]
[1721324739359,20.0,156.74,156.73,0.3138795]
[1721324740060,26.3799,156.74,156.73,0.3138795]
[1721324741275,20.0,156.74,156.73,0.3138795]
[1721324741574,26.3799,156.74,156.73,0.3138795]
[1721324741770,20.0,156.74,156.73,0.3138795]
[1721324741960,26.3799,156.74,156.73,0.3138795]
[1721324742162,26.3799,156.74,156.68,15.9553]
[1721324742163,6.3806,156.73,156.68,21.6514795]
[1721324742350,20.0,156.72,156.68,21.6514795]
[1721324742555,6.3815,156.71,156.66,6.3831]
[1721324742964,6.3815,156.71,156.67,6.3826]
[1721324743274,6.3833,156.66,156.62,15.9621]
[1721324743503,6.3837,156.65,156.6,6.3853]
[1721324743680,6.3832,156.66,156.61,6.3849]
[1721324743980,6.3832,156.66,156.61,6.3852]
[1721324743981,6.3836,156.66,156.61,6.3852]
[1721324744176,45.0,156.69,156.61,6.3851]
[1721324744360,6.3833,156.66,156.61,6.3851]
[1721324744777,6.3829,156.67,156.62,6.3848]
[1721324745077,20.0,156.72,156.61,31.9256]
[1721324745294,20.0,156.72,156.65,15.9591]
[1721324745587,6.3825,156.68,156.62,37.738]
[1721324745757,20.0,156.67,156.64,6.384]
[1721324746887,20.0,156.67,156.62,21.7765]
[1721324747066,6.3829,156.67,156.63,6.3844]
[1721324747464,6.3834,156.66,156.62,6.3847]
[1721324747982,6.3834,156.66,156.62,6.3848]
[1721324748705,24.98,156.65,156.57,16.1700795]
[1721324748886,44.98,156.65,156.59,6.386]
[1721324749186,6.3845,156.63,156.59,6.386]
[1721324749392,20.0,156.62,156.58,6.3864]
[1721324749764,20.0,156.62,156.57,16.7804795]
[1721324750082,26.3841,156.64,156.59,6.386]
[1721324750284,26.3841,156.64,156.57,16.7804795]
[1721324750285,6.3853,156.61,156.57,23.1670795]
[1721324750459,6.3865,156.59,156.57,0.8138795]
[1721324750762,6.386,156.6,156.57,0.8138795]
[1721324751079,44.98,156.64,156.57,7.2003795]
[1721324751391,6.3845,156.63,156.57,0.8138795]
[1721324751563,20.0,156.62,156.57,0.8138795]
[1721324751757,51.3641,156.64,156.59,6.3857]
[1721324751980,51.3641,156.64,156.58,22.3516]
[1721324752181,6.3844,156.63,156.58,22.3516]
[1721324752359,44.98,156.64,156.59,6.386]
[1721324752560,44.98,156.64,156.57,0.8138795]
[1721324752561,20.0,156.64,156.61,22.3477]
[1721324752784,20.0,156.66,156.63,6.3844]
[1721324753087,6.3821,156.69,156.64,6.384]
[1721324753289,6.3828,156.67,156.62,6.3848]
[1721324753453,6.3834,156.66,156.61,15.9625]
[1721324753658,6.3829,156.67,156.61,15.9625]
[1721324753965,6.3825,156.68,156.63,6.3843]
[1721324754284,6.3825,156.68,156.61,15.9625]
[1721324754285,29.2088517,156.7,156.64,6.3839]
[1721324754580,6.3825,156.68,156.63,6.3841]
[1721324754786,6.3807,156.73,156.68,6.3824]
[1721324754985,24.98,156.75,156.62,31.9233]
[1721324755176,24.98,156.78,156.68,15.9557]
[1721324755485,6.3791,156.77,156.72,6.3807]
[1721324755695,24.98,156.78,156.73,6.3801]
[1721324755696,31.3585,156.78,156.73,6.3801]
[1721324756003,31.3585,156.78,156.71,15.9529]
[1721324756004,6.3788,156.77,156.71,22.3337]
[1721324756164,6.3793,156.76,156.71,22.3337]
[1721324756365,6.3803,156.74,156.69,6.3819]
[1721324756559,6.3804,156.73,156.69,6.3819]
[1721324756779,6.3799,156.75,156.69,6.3819]
[1721324756984,6.3799,156.75,156.7,6.3815]
[1721324757481,6.3799,156.75,156.71,6.3811]
[1721324757679,6.3788,156.77,156.72,6.3807]
[1721324758089,50.80183591,156.8,156.69,15.9543]
[1721324758090,6.3804,156.73,156.69,15.9543]
[1721324758294,6.3809,156.72,156.65,15.9581]
[1721324758469,6.3809,156.72,156.67,6.3828]
[1721324758666,63.287,156.77,156.66,6.383]
[1721324758873,39.15,156.76,156.59,38.2507]
[1721324759178,6.3813,156.71,156.66,6.3831]
[1721324759795,6.3813,156.71,156.67,6.3827]
[1721324759972,6.3815,156.71,156.66,6.3831]
[1721324760187,6.3824,156.69,156.63,6.3844]
[1721324760372,6.382,156.69,156.63,6.3844]
[1721324760565,22.4899,156.73,156.65,6.3835]
[1721324760769,6.5384,156.73,156.64,15.9592]
[1721324760965,6.3812,156.71,156.65,6.3836]
[1721324761162,6.3817,156.7,156.64,15.9592]
[1721324761383,6.5384,156.73,156.64,15.9592]
[1721324761583,6.3812,156.71,156.64,22.3428]
[1721324761795,6.5384,156.73,156.64,22.3428]
[1721324762092,6.3815,156.71,156.64,22.3428]
[1721324762296,26.3816,156.7,156.64,22.3428]
[1721324762797,20.0,156.7,156.65,6.3834]
[1721324762980,6.3811,156.72,156.64,15.9592]
[1721324762981,20.0,156.71,156.66,6.3831]
[1721324763485,6.5384,156.77,156.67,17.23331881]
[1721324763680,35.23536011,156.79,156.67,17.23331881]
[1721324763881,35.23536011,156.79,156.67,15.9567]
[1721324764193,70.33116011,156.79,156.67,15.9567]
[1721324764395,6.3804,156.73,156.67,22.3391]
[1721324764576,6.3811,156.72,156.67,15.9567]
[1721324764978,6.3804,156.73,156.68,6.3823]
[1721324765181,20.0,156.72,156.68,6.3823]
[1721324765488,20.0,156.72,156.7,6.3815]
[1721324765689,20.0,156.74,156.67,15.9567]
[1721324765902,6.38,156.74,156.69,6.3818]
[1721324766276,20.0,156.73,156.69,6.3818]
[1721324766595,20.0,156.73,156.7,6.3816]
[1721324766764,26.3803,156.74,156.69,6.3819]
[1721324767168,20.0,156.74,156.7,6.3814]
[1721324768067,20.0,156.74,156.69,22.3357]
[1721324768264,26.3801,156.74,156.69,22.3357]
[1721324768469,20.0,156.74,156.7,6.3814]
[1721324768707,26.3795,156.76,156.71,6.3812]
[1721324768881,6.3795,156.76,156.71,6.3812]
[1721324769401,6.3796,156.75,156.7,6.3815]
[1721324770881,6.66803582,156.77,156.69,15.9541]
[1721324771090,6.3804,156.73,156.68,6.3823]
[1721324771897,6.3799,156.75,156.69,6.382]
[1721324772073,26.38,156.74,156.69,6.382]
[1721324772598,6.3795,156.76,156.68,17.23143371]
[1721324772808,6.3787,156.77,156.73,6.3803]
[1721324773095,6.3784,156.78,156.73,6.3803]
[1721324773697,6.3787,156.77,156.73,6.3803]
[1721324774003,6.3787,156.77,156.71,22.3337]
[1721324774393,6.3787,156.77,156.72,6.3805]
[1721324774586,6.3776,156.8,156.74,15.9496]
[1721324774787,6.3773,156.81,156.76,6.3791]
[1721324775379,6.3775,156.8,156.76,6.3791]
[1721324775585,6.3771,156.81,156.76,6.3791]
[1721324775794,6.3771,156.81,156.76,6.379]
[1721324776094,6.3771,156.81,156.77,6.3787]
[1721324776299,6.67129156,156.84,156.77,6.3787]
[1721324776478,6.3771,156.82,156.77,6.3787]
[1721324776800,6.3771,156.81,156.77,6.3787]
[1721324776972,6.3771,156.81,156.76,37.5972]
[1721324777172,6.3775,156.8,156.76,31.2182]
[1721324778386,6.378,156.79,156.76,15.271]
[1721324778592,6.3776,156.8,156.76,15.271]
[1721324778789,35.0904,156.84,156.73,22.4232]
[1721324778998,6.3784,156.78,156.73,28.8035]
[1721324779190,6.3784,156.78,156.74,6.3799]
[1721324779382,6.4756,156.86,156.73,6.4727]
[1721324779595,6.3759,156.84,156.79,22.3223]
[1721324779912,20.0,156.83,156.79,22.3223]
[1721324780216,26.3763,156.83,156.79,22.3223]
[1721324780511,26.3763,156.83,156.77,6.3786]
[1721324780512,6.3768,156.82,156.77,6.3786]
[1721324780693,6.3768,156.82,156.76,15.9476]
[1721324780880,20.0,156.83,156.76,22.3264]
[1721324781083,15.9412,156.83,156.73,6.4727]
[1721324781279,6.3775,156.8,156.76,6.3791]
[1721324781486,26.3767,156.82,156.73,6.4727]
[1721324781811,20.0,156.82,156.78,6.3783]
[1721324782013,26.3767,156.82,156.77,6.3786]
[1721324782809,20.0,156.82,156.76,15.9473]
[1721324783009,6.3779,156.79,156.74,6.3799]
[1721324783191,6.3776,156.8,156.75,6.3792]
[1721324783392,6.3781,156.79,156.74,6.3799]
[1721324783891,6.3776,156.8,156.75,6.3793]
[1721324784093,6.378,156.79,156.74,6.3799]
[1721324784612,20.0,156.83,156.75,15.9484]
[1721324785112,6.3767,156.82,156.77,6.3786]
[1721324785311,26.3772,156.81,156.76,6.379]
[1721324785516,6.3772,156.81,156.76,6.379]
[1721324785713,6.3776,156.8,156.76,6.379]
[1721324786404,6.3779,156.79,156.75,15.9484]
[1721324786724,6.3795,156.76,156.72,15.9515]
[1721324786883,6.3788,156.77,156.72,22.3321]
[1721324787083,20.0,156.78,156.69,22.6043]
[1721324787290,45.0,156.77,156.66,15.9578]
[1721324787505,6.3803,156.74,156.69,6.382]
[1721324787812,26.3804,156.73,156.68,22.3379]
[1721324787982,20.0,156.73,156.65,22.6088]
[1721324788184,6.3813,156.71,156.66,6.3831]
[1721324788385,35.9507,156.74,156.65,15.9589]
[1721324788614,6.3836,156.66,156.62,15.9617]
[1721324788828,6.3829,156.67,156.62,22.3464]
[1721324789193,6.3835,156.66,156.62,15.9617]
[1721324789393,25.04,156.69,156.6,6.3856]
[1721324789607,6.3837,156.65,156.6,6.3856]
[1721324789919,6.3837,156.65,156.61,6.3852]
[1721324790091,6.3829,156.67,156.62,6.3848]
[1721324790422,26.3833,156.66,156.61,6.3852]
[1721324791300,20.0,156.66,156.62,6.3847]
[1721324791500,20.0,156.66,156.62,15.962]
[1721324791697,6.3829,156.67,156.62,22.3467]
[1721324791906,20.0,156.66,156.62,22.3467]
[1721324792217,26.3833,156.66,156.62,15.962]
[1721324792423,20.0,156.66,156.62,22.3468]
[1721324793125,26.3833,156.66,156.62,15.962]
[1721324793426,26.3833,156.66,156.62,22.3468]
[1721324794400,20.0,156.66,156.62,22.3468]
[1721324794606,6.3817,156.7,156.64,15.9593]
[1721324794811,15.9525,156.72,156.57,38.8335795]
[1721324794999,15.9525,156.72,156.62,6.3847]
[1721324795199,6.3832,156.67,156.63,6.3844]
[1721324795518,6.3832,156.67,156.62,6.3847]
[1721324795721,6.3832,156.66,156.61,22.3478]
[1721324795918,6.3829,156.67,156.62,6.3847]
[1721324797025,15.9525,156.72,156.64,6.384]
[1721324797239,6.3824,156.68,156.63,22.3449]
[1721324797393,20.0,156.71,156.64,1.27675425]
[1721324797596,6.3812,156.71,156.65,15.9584]
[1721324797818,6.3808,156.72,156.68,6.3824]
[1721324798024,6.2346,156.74,156.65,15.9584]
[1721324798025,6.3813,156.71,156.65,15.9584]
[1721324798317,6.3813,156.71,156.66,6.3832]
[1721324798495,6.3813,156.71,156.67,6.3827]
[1721324798704,6.3808,156.72,156.68,6.3822]
[1721324798917,15.9514,156.73,156.62,15.9617]
[1721324799129,6.3832,156.66,156.62,15.9617]
[1721324799301,19.15,156.71,156.6,6.3856]
[1721324799631,19.15,156.71,156.59,31.7624]
[1721324799632,6.3837,156.65,156.61,6.3851]
[1721324799799,15.9557,156.69,156.61,6.3851]
[1721324799800,6.3833,156.66,156.61,6.3851]
[1721324800125,15.9557,156.69,156.59,31.7624]
[1721324800126,15.9557,156.69,156.59,15.9651]
[1721324800426,6.3841,156.64,156.59,22.3509]
[1721324800726,6.3833,156.66,156.59,15.9651]
[1721324800902,6.3833,156.66,156.61,6.3851]
[1721324801224,6.3838,156.65,156.61,6.3851]
[1721324801800,6.3833,156.66,156.61,6.3851]
[1721324802217,6.3837,156.65,156.61,6.3851]
[1721324802425,6.3831,156.67,156.62,6.3848]
[1721324802729,20.0,156.66,156.63,6.3844]
[1721324803021,13.27996011,156.74,156.65,15.9586]
[1721324803504,6.3819,156.7,156.65,22.3421]
[1721324803700,6.3819,156.7,156.66,6.383]
[1721324804424,20.0,156.69,156.66,6.383]
[1721324804602,20.0,156.69,156.65,15.9586]
[1721324804807,20.0,156.7,156.66,6.3831]
[1721324805320,26.3816,156.7,156.66,6.3831]
[1721324805710,6.3812,156.71,156.67,6.3828]
[1721324806122,6.3812,156.71,156.66,6.3831]
[1721324806311,6.673935,156.75,156.63,15.6049]
[1721324806628,6.3801,156.74,156.7,15.9536]
[1721324806804,6.0364,156.78,156.67,15.9566]
[1721324807005,6.3807,156.73,156.68,6.3821]
[1721324807312,6.3807,156.73,156.69,6.382]
[1721324807519,6.3801,156.74,156.69,6.382]
[1721324807719,15.9475,156.77,156.67,15.9566]
[1721324807922,6.3811,156.72,156.67,22.3393]
[1721324808540,6.3804,156.73,156.68,6.3823]
[1721324808923,6.3801,156.74,156.69,6.3818]
[1721324809129,20.0,156.73,156.69,6.3818]
[1721324809518,26.3804,156.73,156.69,6.3818]
[1721324809723,20.0,156.73,156.69,6.3818]
[1721324809932,20.0,156.73,156.71,6.3809]
[1721324810109,26.3796,156.75,156.7,6.3815]
[1721324810446,26.3797,156.75,156.7,6.3815]
[1721324810611,26.3797,156.75,156.7,7.65767451]
[1721324810813,26.3797,156.75,156.7,6.3815]
[1721324811823,6.3791,156.77,156.72,6.3806]
[1721324812014,6.3793,156.76,156.71,6.3811]
[1721324812346,6.3797,156.75,156.71,6.3811]
[1721324812512,6.3791,156.77,156.72,6.3807]
[1721324812705,15.944,156.8,156.72,6.3807]
[1721324813009,6.3797,156.75,156.7,6.3815]
[1721324814624,6.3792,156.76,156.71,6.3811]
[1721324814823,15.944,156.8,156.71,6.3811]
[1721324814824,6.3788,156.77,156.72,6.3807]
[1721324815523,6.3785,156.78,156.73,6.3801]
[1721324815833,6.378,156.79,156.74,6.3799]
[1721324816039,6.3783,156.78,156.74,6.3799]
[1721324816209,6.3779,156.8,156.75,6.3795]
[1721324816414,6.3781,156.79,156.75,6.3795]
[1721324816647,6.3783,156.78,156.74,6.3798]
[1721324817148,15.4698,156.81,156.75,15.9486]
[1721324817641,6.3778,156.8,156.75,22.3281]
[1721324817937,6.3772,156.81,156.76,6.379]
[1721324818238,6.3772,156.81,156.75,15.9486]
[1721324818239,6.3772,156.81,156.77,6.3787]
[1721324818434,6.3775,156.8,156.76,6.379]
[1721324818639,6.378,156.79,156.75,15.9486]
[1721324819347,6.3776,156.8,156.75,22.328]
[1721324820241,6.3776,156.8,156.76,6.379]
[1721324820942,6.3776,156.8,156.75,22.328]
[1721324821721,6.378,156.79,156.75,22.328]
[1721324821920,6.3789,156.77,156.72,15.9514]
[1721324822244,6.3784,156.78,156.72,15.9514]
[1721324822633,25.05,156.82,156.74,15.9496]
[1721324822634,6.3777,156.8,156.74,15.9496]
[1721324823432,15.9415,156.83,156.74,15.9496]
[1721324823621,6.3771,156.81,156.77,6.3787]
[1721324823823,6.3764,156.83,156.74,1.27576157]
[1721324824047,26.3768,156.82,156.78,22.3235]
[1721324825029,6.3772,156.81,156.76,6.379]
[1721324825346,6.3772,156.81,156.75,15.9483]
[1721324825347,6.3772,156.81,156.77,6.3787]
[1721324825720,26.3768,156.82,156.77,6.3787]
[1721324826948,6.3764,156.83,156.77,15.946]
[1721324827260,6.3764,156.83,156.77,17.22154734]
[1721324827425,6.3764,156.83,156.79,6.3779]
[1721324827620,6.3764,156.83,156.77,17.22154734]
[1721324827831,6.3764,156.83,156.78,7.6537901]
[1721324828424,6.3771,156.81,156.77,22.3247]
[1721324828945,32.4931,156.86,156.78,6.3783]
[1721324829162,6.3764,156.83,156.79,6.3776]
[1721324829325,20.0,156.85,156.8,6.3775]
[1721324829326,6.3759,156.84,156.8,6.3775]
[1721324829528,20.0,156.83,156.78,6.3781]
[1721324829723,20.0,156.85,156.78,6.3781]
[1721324829959,6.377,156.82,156.78,6.3781]
[1721324830126,6.3764,156.83,156.79,6.3779]
[1721324831323,6.376,156.84,156.8,6.3774]
[1721324831633,6.3764,156.83,156.79,22.3224]
[1721324831835,20.0,156.85,156.77,6.3783]
[1721324832951,6.3774,156.81,156.77,6.3783]
[1721324833727,6.3788,156.77,156.73,22.3305]
[1721324833959,6.3796,156.75,156.66,72.0622]
[1721324834546,20.0,156.76,156.66,72.0622]
[1721324834547,20.0,156.76,156.69,15.954]
[1721324834752,6.3808,156.72,156.68,6.3823]
[1721324835128,6.3804,156.73,156.69,6.3819]
[1721324835330,20.0,156.72,156.67,6.3824]
[1721324835654,26.3808,156.72,156.68,6.3823]
[1721324835853,26.3808,156.72,156.66,31.0545]
[1721324835854,20.0,156.72,156.66,31.0545]
[1721324836054,20.0,156.72,156.66,32.33089308]
[1721324836230,26.3808,156.72,156.68,6.3823]
[1721324836434,20.0,156.72,156.68,6.3823]
[1721324836948,26.3808,156.72,156.68,6.3823]
[1721324837151,20.0,156.72,156.68,6.3823]
[1721324837326,20.0,156.72,156.69,6.3819]
[1721324837750,20.0,156.73,156.69,6.3819]
[1721324837939,20.0,156.73,156.7,6.3814]
[1721324838141,20.0,156.74,156.7,6.3814]
[1721324838657,20.0,156.74,156.71,6.381]
[1721324838962,6.3792,156.76,156.72,6.3807]
[1721324839134,26.3798,156.75,156.7,15.9536]
[1721324839547,26.3798,156.75,156.67,15.9567]
[1721324839548,20.0,156.75,156.67,15.9567]
[1721324839750,6.3805,156.73,156.68,6.3824]
[1721324840053,6.3801,156.74,156.69,6.3819]
[1721324840439,6.3795,156.76,156.69,15.9545]
[1721324840639,20.0,156.75,156.71,6.3811]
[1721324841953,6.38,156.74,156.69,22.3361]
[1721324842248,6.38,156.74,156.7,6.3814]
[1721324842633,26.3797,156.75,156.71,6.3811]
[1721324842833,26.3797,156.75,156.72,6.3806]
[1721324842834,20.0,156.75,156.72,6.3806]
[1721324843153,20.0,156.76,156.73,6.3803]
[1721324843643,20.0,156.76,156.72,6.3807]
[1721324843959,6.3797,156.75,156.71,22.3338]
[1721324844248,6.3792,156.76,156.71,22.3337]
[1721324844455,26.3795,156.75,156.71,22.3337]
[1721324844662,6.3795,156.75,156.71,22.3337]
[1721324844955,6.3793,156.76,156.71,22.3337]
[1721324845246,20.0,156.78,156.66,25.05]
[1721324845247,20.0,156.75,156.73,15.9503]
[1721324845454,6.3778,156.8,156.76,6.3791]
[1721324845635,6.3779,156.79,156.75,6.3793]
[1721324846562,6.3776,156.8,156.75,6.3793]
[1721324846760,26.3779,156.79,156.75,6.3793]
[1721324847131,26.3779,156.79,156.73,22.3303]
[1721324847132,20.0,156.79,156.73,22.3303]
[1721324847461,20.0,156.81,156.73,22.3303]
[1721324847962,6.3784,156.78,156.73,22.3303]
[1721324848250,20.0,156.81,156.73,15.9503]
[1721324848251,6.3787,156.77,156.73,15.9503]
[1721324848451,6.3791,156.76,156.71,6.381]
[1721324848639,20.0,156.75,156.71,6.381]
[1721324849230,25.05,156.79,156.7,22.3349]
[1721324849231,6.38,156.74,156.7,22.3349]
[1721324849744,6.3797,156.75,156.71,6.381]
[1721324849945,35.9461,156.78,156.7,15.9535]
[1721324850146,45.0,156.77,156.7,15.9535]
[1721324850347,20.0,156.76,156.7,22.335]
[1721324850533,6.3797,156.75,156.71,6.381]
[1721324851548,26.3792,156.76,156.72,6.3805]
[1721324851856,15.9434,156.81,156.72,15.9515]
[1721324852060,15.9403,156.84,156.73,1.2760895]
[1721324852232,6.3768,156.82,156.77,6.3787]
[1721324852859,6.3776,156.8,156.76,22.3266]
[1721324853467,6.377,156.82,156.76,15.9476]
[1721324853767,20.0,156.81,156.76,15.9476]
[1721324854071,6.3775,156.8,156.76,22.3267]
[1721324854277,20.0,156.81,156.73,15.9502]
[1721324854579,6.378,156.79,156.75,6.3792]
[1721324854779,20.0,156.81,156.76,6.3787]
[1721324854780,26.3772,156.81,156.76,6.3787]